lending/lending_fUSD_20260209
["ID","MTS","AMOUNT","RATE_DAILY","PERIOD"]
[404895742,1770660634017,-500.0,0.00016744,2]
[404895743,1770660634027,-500.0,0.00016744,2]
[404895744,1770660634036,-500.0,0.00016744,2]
[404895745,1770660634045,-500.0,0.00016744,2]
[404895746,1770660634054,-500.0,0.00016744,2]
[404895747,1770660634063,-388.98980404,0.00016744,2]
[404895748,1770660634073,-500.0,0.00016744,2]
[404895750,1770660634086,-500.0,0.00016744,2]
[404895751,1770660634095,-500.0,0.00016744,2]
[404895752,1770660634105,-500.0,0.00016744,2]
[404895753,1770660634114,-500.0,0.00016744,2]
[404895754,1770660634123,-500.0,0.00016744,2]
[404895755,1770660634132,-500.0,0.00016744,2]
[404895756,1770660634141,-500.0,0.00016744,2]
[404895757,1770660634152,-500.0,0.00016744,2]
[404895758,1770660634161,-500.0,0.00016744,2]
[404895759,1770660634170,-500.0,0.00016744,2]
[404895760,1770660634180,-500.0,0.00016744,2]
[404895761,1770660634189,-500.0,0.00016744,2]
[404895762,1770660634198,-500.0,0.00016744,2]
[404895763,1770660634208,-500.0,0.00016744,2]
[404895764,1770660634217,-500.0,0.00016744,2]
[404895765,1770660634226,-500.0,0.00016744,2]
[404895766,1770660634235,-500.0,0.00016744,2]
[404895767,1770660634244,-500.0,0.00016744,2]
[404895768,1770660634254,-650.0,0.00016744,2]
[404895769,1770660634263,-237.3935,0.00016745,2]
[404895770,1770660634273,-876.3883,0.00016745,2]
[404895771,1770660634286,-10000.0,0.00016745,2]
[404895772,1770660634296,-4862.1292,0.00016745,2]
[404895773,1770660634305,-480.49267364,0.00016745,2]
[404895774,1770660634315,-359.1246707,0.00016745,2]
[404895775,1770660634324,-14463.94809377,0.00016752,2]
[404895776,1770660634333,-150.29839688,0.00016752,2]
[404895777,1770660634343,-600.0,0.00016759,2]
[404895778,1770660634352,-466.29604707,0.00016844,2]
[404895779,1770660634362,-500.0,0.00016844,2]
[404895780,1770660634371,-196.37313479,0.00016844,2]
[404895781,1770660634381,-520.9500162,0.00016844,2]
[404895782,1770660634390,-211.00802341,0.00016844,2]
[404895783,1770660634400,-500.0,0.00016844,2]
[404895784,1770660634411,-1063.54173058,0.00016844,5]
[404895785,1770660634421,-33312.6077,0.00016845,2]
[404895786,1770660634432,-1000.0,0.00016845,2]
[404895787,1770660634443,-50138.96069299,0.00016845,2]
[404895788,1770660634452,-9113.99334003,0.00016895,2]
[404895790,1770660634702,-5349.95475374,0.00016895,2]
[404895791,1770660634712,-578.20924308,0.00016912,2]
[404895792,1770660634722,-500.0,0.00016912,2]
[404895793,1770660634733,-322.6107,0.00016912,2]
[404895794,1770660634743,-500.0,0.00016912,2]
[404895795,1770660634753,-500.0,0.00016912,2]
[404895796,1770660634762,-500.0,0.00016912,2]
[404895797,1770660634771,-500.0,0.00016912,2]
[404895798,1770660634782,-500.0,0.00016912,2]
[404895799,1770660634793,-500.0,0.00016912,2]
[404895800,1770660634803,-500.0,0.00016912,2]
[404895801,1770660634815,-500.0,0.00016912,2]
[404895802,1770660634825,-174.61919141,0.00016912,2]
[404895803,1770660634835,-500.0,0.00016912,2]
[404895804,1770660634844,-576.93318184,0.00016912,2]
[404895805,1770660634856,-500.0,0.00016918,2]
[404895806,1770660634865,-217.18,0.00016924,2]
[404895807,1770660634876,-41256.22932802,0.00016996,2]
[404895808,1770660634888,-8882.73136497,0.00016996,2]
[404895809,1770660634898,-500.0,0.00017,2]
[404895810,1770660634907,-48289.30613084,0.00017008,2]
[404895811,1770660634917,-14463.94809377,0.00017039,2]
[404895812,1770660634927,-1479.37248581,0.00017125,2]
[404895813,1770660634936,-1024.86760112,0.00017125,2]
[404895814,1770660634946,-345.91474539,0.00017125,2]
[404895815,1770660634956,-1154.91592595,0.00017125,2]
[404895816,1770660634966,-50138.96069299,0.00017147,2]
[404895817,1770660634976,-500.0,0.00017151,2]
[404895818,1770660634986,-14463.94809377,0.00017182,2]
[404895819,1770660634997,-200.0,0.00017183,2]
[404895820,1770660635008,-200.0,0.00017183,2]
[404895821,1770660635017,-500.0,0.00017183,2]
[404895822,1770660635027,-489.0,0.00017188,2]
[404895823,1770660635036,-500.0,0.00017192,2]
[404895824,1770660635046,-2576.0,0.00017216,2]
[404895825,1770660635056,-935.0,0.00017235,2]
[404895826,1770660635067,-500.0,0.00017258,2]
[404895827,1770660635077,-2763.4298437,0.00017297,2]
[404895828,1770660635092,-47375.53084929,0.00017297,2]
[404895829,1770660635105,-378.0,0.00017298,2]
[404895831,1770660635114,-1680.0,0.00017315,2]
[404895832,1770660635124,-253.0,0.00017319,2]
[404895833,1770660635134,-2553.86359067,0.00017326,2]
[404895834,1770660635182,-841.05406,0.00017326,2]
[404895835,1770660635194,-458.86841978,0.00017326,2]
[404895836,1770660635205,-799.21,0.00017326,2]
[404895838,1770660638297,-407.35906059,0.00016744,2]
[404895839,1770660638308,-9810.95202332,0.00017326,2]
[404895840,1770660638318,-421.0,0.00017328,2]
[404895841,1770660638327,-462.0,0.00017328,2]
[404895842,1770660638337,-196.24403011,0.0001733,2]
[404895843,1770660638347,-195.0,0.0001733,2]
[404895844,1770660638358,-299.8249884,0.0001733,2]
[404895845,1770660638368,-300.0,0.0001733,2]
[404895846,1770660638378,-300.0,0.0001733,2]
[404895847,1770660638389,-600.0,0.0001733,2]
[404895848,1770660638399,-195.0,0.0001733,2]
[404895849,1770660638408,-500.0,0.0001733,2]
[404895850,1770660638418,-781.27561269,0.0001733,2]
[404895851,1770660638428,-250.0,0.0001733,2]
[404895852,1770660638437,-300.0,0.0001733,2]
[404895853,1770660638447,-300.0,0.0001733,2]
[404895854,1770660638457,-195.0,0.0001733,2]
[404895855,1770660638467,-250.0,0.0001733,2]
[404895856,1770660638476,-195.0,0.0001733,2]
[404895857,1770660638486,-1000.0,0.00017399,2]
[404895858,1770660638498,-1000.0,0.00017399,2]
[404895859,1770660638508,-1000.0,0.00017399,2]
[404895861,1770660638518,-1000.0,0.00017399,2]
[404895862,1770660638527,-1000.0,0.00017399,2]
[404895864,1770660638537,-1000.0,0.00017399,2]
[404895866,1770660638548,-1000.0,0.00017399,2]
[404895868,1770660638557,-506.851,0.00017399,2]
[404895870,1770660638567,-378.0,0.00017402,2]
[404895872,1770660638578,-378.0,0.00017447,2]
[404895874,1770660638587,-50138.96069299,0.00017448,2]
[404895875,1770660638598,-181.08010149,0.0001746,2]
[404895877,1770660638610,-500.0,0.00017466,2]
[404895879,1770660638620,-151.0,0.00017466,2]
[404895881,1770660638631,-14463.94809377,0.00017469,2]
[404895882,1770660638641,-386.0,0.0001747,2]
[404895883,1770660638651,-501.0,0.00017479,2]
[404895884,1770660638661,-253.0,0.00017506,2]
[404895885,1770660638671,-300.0,0.00017509,2]
[404895886,1770660638681,-480.49267364,0.00017534,2]
[404895887,1770660638690,-378.0,0.00017555,2]
[404895888,1770660638700,-500.0,0.00017559,2]
[404895889,1770660638710,-352.0,0.00017559,2]
[404895890,1770660638720,-50138.96069299,0.00017599,2]
[404895891,1770660638730,-253.0,0.00017603,2]
[404895892,1770660638740,-14463.94809377,0.00017613,2]
[404895893,1770660638750,-420.0,0.00017623,2]
[404895894,1770660638759,-300.0,0.00017623,2]
[404895895,1770660638769,-420.0,0.00017623,2]
[404895896,1770660638781,-230.0,0.00017625,2]
[404895898,1770660638791,-420.0,0.00017625,2]
[404895900,1770660638801,-1680.0,0.00017626,2]
[404895902,1770660638810,-2460.69490808,0.0001764,2]
[404895904,1770660638822,-366.0,0.00017656,2]
[404895906,1770660638831,-378.0,0.0001769,2]
[404895908,1770660638840,-2000.0,0.000177,2]
[404895910,1770660638851,-150.0,0.00017725,2]
[404895912,1770660638865,-500.0,0.00017725,2]
[404895914,1770660638874,-500.0,0.00017725,2]
[404895916,1770660638884,-150.0,0.00017725,2]
[404895917,1770660638893,-500.0,0.00017725,2]
[404895918,1770660638903,-500.0,0.00017725,2]
[404895919,1770660638914,-150.0,0.00017725,2]
[404895920,1770660638923,-500.0,0.00017725,2]
[404895921,1770660638933,-150.0,0.00017725,2]
[404895922,1770660638942,-150.0,0.00017725,2]
[404895923,1770660638951,-150.0,0.00017725,2]
[404895924,1770660638961,-150.0,0.00017725,2]
[404895925,1770660638971,-200.0,0.00017731,2]
[404895926,1770660638981,-200.0,0.00017731,2]
[404895927,1770660638990,-500.0,0.00017731,2]
[404895928,1770660639000,-500.0,0.0001774,2]
[404895929,1770660639009,-378.0,0.00017744,2]
[404895930,1770660639019,-50138.96069299,0.00017749,2]
[404895931,1770660639029,-14463.94809377,0.00017756,2]
[404895932,1770660639041,-200.0,0.0001776,2]
[404895933,1770660639051,-378.0,0.00017764,2]
[404895934,1770660639062,-150.0,0.0001778,2]
[404895935,1770660639071,-500.0,0.0001778,2]
[404895936,1770660639081,-500.0,0.0001778,2]
[404895937,1770660639091,-505.69787542,0.0001778,2]
[404895938,1770660639101,-500.0,0.0001778,2]
[404895939,1770660639117,-540.02387941,0.0001778,2]
[404895940,1770660639127,-202.65824517,0.0001778,2]
[404895941,1770660639137,-150.0,0.0001778,2]
[404895942,1770660639147,-150.0,0.0001778,2]
[404895943,1770660639158,-568.0,0.0001779,2]
[404895944,1770660639169,-900.0,0.00017793,2]
[404895945,1770660639179,-2000.0,0.000178,2]
[404895946,1770660639188,-150.0,0.00017808,2]
[404895947,1770660639198,-500.0,0.00017808,2]
[404895948,1770660639208,-500.0,0.00017808,2]
[404895949,1770660639218,-500.0,0.00017808,2]
[404895950,1770660639227,-500.0,0.00017808,2]
[404895951,1770660639237,-500.0,0.00017808,2]
[404895952,1770660639246,-500.0,0.00017808,2]
[404895953,1770660639256,-500.0,0.00017808,2]
[404895954,1770660639266,-202.52568213,0.00017808,2]
[404895955,1770660639275,-500.0,0.00017808,2]
[404895956,1770660639285,-500.0,0.00017808,2]
[404895957,1770660639295,-500.0,0.00017808,2]
[404895958,1770660639304,-500.0,0.00017808,2]
[404895959,1770660639314,-1629.89256,0.0001782,2]
[404895960,1770660639323,-1629.89257,0.0001782,2]
[404895961,1770660639332,-150.0,0.00017835,2]
[404895962,1770660639341,-500.0,0.00017835,2]
[404895963,1770660639351,-500.0,0.00017835,2]
[404895964,1770660639363,-350.0,0.00017835,2]
[404895965,1770660639372,-150.0,0.00017835,2]
[404895966,1770660639381,-250.0,0.00017835,2]
[404895967,1770660639390,-378.0,0.0001785,2]
[404895968,1770660639399,-4724.0,0.00017851,2]
[404895969,1770660639408,-150.0,0.00017863,2]
[404895970,1770660639419,-150.0,0.00017889,2]
[404895971,1770660639428,-500.0,0.00017889,2]
[404895972,1770660639437,-250.0,0.00017889,2]
[404895973,1770660639446,-268.25268962,0.00017889,2]
[404895974,1770660639455,-549.96992372,0.00017899,2]
[404895975,1770660639465,-1361.40869068,0.00017899,2]
[404895976,1770660639474,-1007.67035174,0.00017899,2]
[404895977,1770660639484,-500.0,0.000179,2]
[404895978,1770660639494,-14463.94809377,0.000179,2]
[404895979,1770660639503,-2000.0,0.000179,2]
[404895980,1770660639513,-50138.96069299,0.000179,2]
[404895981,1770660639522,-150.0,0.00017918,2]
[404895982,1770660639531,-1000.0,0.00017941,2]
[404895983,1770660639540,-200.0,0.00017972,2]
[404895984,1770660639550,-150.0,0.00017973,2]
[404895985,1770660639559,-150.0,0.00017973,2]
[404895986,1770660639570,-252.64411097,0.0001799,2]
[404895987,1770660639580,-252.64411097,0.0001799,2]
[404895988,1770660639592,-378.0,0.00017991,2]
[404895989,1770660639601,-151.0,0.00017997,2]
[404895990,1770660639615,-151.0,0.00017997,2]
[404895991,1770660639624,-531077.6417017,0.00017999,2]
[404895992,1770660639634,-4026.3124721,0.00017999,2]
[404895993,1770660639643,-300.0,0.00017999,2]
[404895994,1770660639653,-300.0,0.00017999,2]
[404895995,1770660639663,-3884.8515672,0.00017999,2]
[404895996,1770660639672,-172.31661001,0.00017999,2]
[404895997,1770660639682,-3782023.66563712,0.00018,2]
[404895998,1770660639691,-151.0,0.00018,2]
[404895999,1770660639700,-154.181487,0.00018,2]
[404896000,1770660639710,-151.0,0.00018,2]
[404896001,1770660639720,-151.0,0.00018,2]
[404896002,1770660639729,-151.368983,0.00018,2]
[404896003,1770660639738,-1629.89257,0.00018,2]
[404896004,1770660639748,-1629.89257,0.00018,2]
[404896005,1770660639758,-1629.89257,0.00018,2]
[404896006,1770660639767,-1629.89256,0.00018,2]
[404896007,1770660639777,-168.15828132,0.00018008,2]
[404896008,1770660639790,-500.0,0.00018014,2]
[404896009,1770660639799,-150.0,0.00018028,2]
[404896010,1770660639808,-1157.0,0.00018043,2]
[404896011,1770660639818,-1157.0,0.00018044,2]
[404896012,1770660639827,-201.50510114,0.00018083,2]
[404896013,1770660639836,-1157.0,0.00018094,2]
[404896014,1770660639846,-1781.49378135,0.000181,2]
[404896015,1770660639857,-200.59756188,0.00018128,2]
[404896016,1770660639867,-174.8,0.00018132,2]
[404896017,1770660639875,-174.8,0.00018166,2]
[404896018,1770660639885,-1079.52,0.0001819,2]
[404896019,1770660639894,-1157.0,0.00018196,2]
[404896020,1770660639903,-174.8,0.00018199,2]
[404896021,1770660639912,-2000.0,0.000182,2]
[404896022,1770660639922,-174.8,0.00018232,2]
[404896023,1770660639931,-174.8,0.00018266,2]
[404896024,1770660639940,-200.0,0.00018279,2]
[404896025,1770660639950,-200.0,0.00018279,2]
[404896026,1770660639959,-500.0,0.00018279,2]
[404896027,1770660639969,-334.5472959,0.00018281,2]
[404896028,1770660639978,-500.0,0.00018288,2]
[404896029,1770660639987,-174.8,0.00018299,2]
[404896030,1770660639997,-480.49267364,0.00018323,2]
[404896031,1770660640006,-174.8,0.00018333,2]
[404896032,1770660640016,-1157.0,0.00018349,2]
[404896033,1770660640027,-4988.0,0.0001836,2]
[404896034,1770660640036,-174.8,0.00018366,2]
[404896035,1770660640046,-166.66,0.00018373,2]
[404896036,1770660640055,-500.0,0.00018384,2]
[404896037,1770660640064,-174.8,0.00018399,2]
[404896038,1770660640073,-1157.0,0.00018417,2]
[404896039,1770660640082,-1589.0,0.00018429,2]
[404896040,1770660640091,-174.8,0.00018433,2]
[404896041,1770660640100,-5888.0,0.0001844,2]
[404896042,1770660640111,-174.8,0.00018466,2]
[404896043,1770660640120,-174.8,0.000185,2]
[404896044,1770660640130,-163.58,0.000185,2]
[404896045,1770660640139,-174.8,0.00018533,2]
[404896046,1770660640149,-500.0,0.00018562,2]
[404896047,1770660640158,-166.66,0.00018563,2]
[404896048,1770660640167,-174.8,0.00018566,2]
[404896049,1770660640176,-1204.0,0.00018576,2]
[404896050,1770660640185,-174.8,0.000186,2]
[404896052,1770660640194,-153.38,0.000186,2]
[404896053,1770660640203,-482.3626455,0.00018619,2]
[404896054,1770660640212,-482.3626455,0.00018621,2]
[404896055,1770660640222,-174.8,0.00018633,2]
[404896056,1770660640232,-174.8,0.00018667,2]
[404896057,1770660640242,-1157.0,0.00018698,2]
[404896058,1770660640251,-174.8,0.000187,2]
[404896059,1770660640261,-174.8,0.00018733,2]
[404896060,1770660640270,-174.8,0.00018767,2]
[404896061,1770660640280,-2312.27,0.00018791,2]
[404896062,1770660640291,-150.82,0.00018808,14]
[404896064,1770660640307,-200.0,0.00018827,2]
[404896066,1770660640316,-200.0,0.00018827,2]
[404896067,1770660640326,-500.0,0.00018827,2]
[404896068,1770660640335,-500.0,0.00018836,2]
[404896069,1770660640344,-600.0,0.00018866,2]
[404896070,1770660640355,-483.61164433,0.0001887,2]
[404896071,1770660640365,-230.89379757,0.000189,2]
[404896072,1770660640374,-4988.0,0.00018959,2]
[404896073,1770660640384,-250.0,0.00018977,2]
[404896074,1770660640393,-1157.0,0.00018993,2]
[404896075,1770660640402,-1145.84487387,0.00019,2]
[404896076,1770660640412,-2351.0,0.00019031,2]
[404896077,1770660640422,-4724.0,0.00019057,2]
[404896078,1770660640431,-5888.0,0.00019062,2]
[404896079,1770660640440,-482.3626455,0.00019084,2]
[404896080,1770660640450,-150.82,0.00019085,14]
[404896081,1770660640459,-1204.0,0.00019096,2]
[404896082,1770660640468,-274.0,0.00019099,2]
[404896083,1770660640477,-274.0,0.00019101,2]
[404896084,1770660640486,-500.0,0.0001911,2]
[404896085,1770660640495,-480.49267364,0.00019111,2]
[404896086,1770660640504,-1157.0,0.00019145,2]
[404896087,1770660640513,-900.0,0.00019163,2]
[404896088,1770660640523,-369.0,0.00019178,2]
[404896089,1770660640533,-587.0,0.00019266,2]
[404896090,1770660640543,-487.0,0.00019266,2]
[404896091,1770660640553,-587.0,0.00019267,2]
[404896092,1770660640563,-172.0,0.00019268,2]
[404896093,1770660640572,-166.66,0.00019271,2]
[404896094,1770660640582,-183.87,0.00019319,2]
[404896095,1770660640591,-1157.0,0.00019321,2]
[404896096,1770660640601,-483.61164433,0.00019342,2]
[404896097,1770660640612,-500.0,0.00019374,2]
[404896098,1770660640622,-200.0,0.00019375,2]
[404896099,1770660640631,-200.0,0.00019375,2]
[404896100,1770660640640,-500.0,0.00019375,2]
[404896101,1770660640650,-500.0,0.00019384,2]
[404896102,1770660640659,-274.0,0.00019438,2]
[404896103,1770660640669,-274.0,0.00019566,2]
[404896104,1770660640679,-2312.27,0.00019608,2]
[404896105,1770660640688,-383.59785608,0.00019651,2]
[404896106,1770660640698,-500.0,0.00019658,2]
[404896107,1770660640707,-2702.0,0.00019702,2]
[404896108,1770660640717,-150.0,0.00019726,2]
[404896109,1770660640726,-150.0,0.00019781,2]
[404896110,1770660640736,-483.61164433,0.00019814,2]
[404896111,1770660640745,-201.89069271,0.00019836,2]
[404896112,1770660640755,-217.18,0.00019898,2]
[404896113,1770660640764,-4930.70056391,0.000199,3]
[404896114,1770660640774,-480.49267364,0.000199,2]
[404896115,1770660640786,-4026.3124721,0.00019914,2]
[404896116,1770660640796,-200.0,0.00019923,2]
[404896117,1770660640805,-200.0,0.00019923,2]
[404896118,1770660640815,-500.0,0.00019923,2]
[404896119,1770660640824,-354.59805596,0.00019932,2]
[404896120,1770660640834,-1000.0,0.00019934,2]
[404896121,1770660640843,-600.0,0.00019968,2]
[404896122,1770660640853,-166.66,0.00019978,2]
[404896123,1770660640864,-300.0,0.00019989,2]
[404896124,1770660640873,-50276.46758605,0.0001999,2]
[404896125,1770660640883,-87256.45661182,0.0002,4]
[404896126,1770660640892,-10000.0,0.0002,2]
[404896127,1770660640901,-150.0,0.00020133,14]
[404896128,1770660640911,-1079.52,0.00020211,2]
[404896129,1770660640920,-500.10948216,0.00020328,3]
[404896130,1770660640930,-359.12467069,0.0002041,2]
[404896131,1770660640939,-200.0,0.00020471,2]
[404896132,1770660640949,-200.0,0.00020471,2]
[404896133,1770660640958,-500.0,0.00020471,2]
[404896134,1770660640968,-152.3130889,0.00020755,2]
[404896135,1770660640977,-205.23659577,0.00020755,2]
[404896136,1770660640987,-200.96,0.00020872,2]
[404896137,1770660640997,-163.33173501,0.000209,2]
[404896138,1770660641006,-3292.0,0.00020917,2]
[404896139,1770660641015,-68717.02245631,0.00021,2]
[404896140,1770660641024,-3000.03920132,0.00021,2]
[404896141,1770660641035,-200.0,0.00021019,2]
[404896142,1770660641044,-1661.0,0.00021057,2]
[404896143,1770660641054,-823.0,0.00021062,2]
[404896144,1770660641063,-823.0,0.00021063,2]
[404896145,1770660641073,-150.82,0.00021098,14]
[404896146,1770660641082,-173.07232147,0.00021132,2]
[404896147,1770660641092,-118499.4392441,0.00021206,2]
[404896148,1770660641101,-866.8275523,0.00021216,2]
[404896149,1770660641116,-430.9,0.00021474,2]
[404896150,1770660641125,-200.0,0.00021567,2]
[404896151,1770660641135,-572.35,0.000216,2]
[404896152,1770660641146,-2689.5907367,0.00021634,2]
[404896153,1770660641155,-217.18,0.00021702,2]
[404896154,1770660641164,-200.96,0.00021779,2]
[404896155,1770660641173,-4026.3124721,0.00021829,2]
[404896156,1770660641183,-430.9,0.00021878,2]
[404896157,1770660641192,-5701.7,0.00021884,2]
[404896158,1770660641201,-2017.88585206,0.00021917,2]
[404896159,1770660641212,-5000.0,0.00021918,2]
[404896160,1770660641223,-150.0,0.00021918,2]
[404896161,1770660641232,-325.32148607,0.00021918,2]
[404896162,1770660641241,-26440.798856,0.00021921,2]
[404896163,1770660641251,-1000.0,0.00021928,2]
[404896164,1770660641260,-193.4153705,0.00021934,2]
[404896165,1770660641269,-150.0,0.00021973,2]
[404896166,1770660641278,-5000.0,0.00022,2]
[404896167,1770660641287,-681.38,0.00022,7]
[404896168,1770660641298,-20284.51,0.00022,2]
[404896169,1770660641307,-200.0,0.00022028,2]
[404896170,1770660641321,-237.66106357,0.00022115,2]
[404896171,1770660641331,-1079.52,0.00022232,2]
[404896172,1770660641340,-430.9,0.00022282,2]
[404896173,1770660641349,-278.88539014,0.0002253,2]
[404896174,1770660641361,-200.96,0.00022687,2]
[404896175,1770660641370,-4609.0,0.0002299,2]
[404896176,1770660641380,-160.0,0.00023,2]
[404896177,1770660641390,-156.0,0.00023,7]
[404896178,1770660641399,-1152.0,0.00023024,2]
[404896179,1770660641409,-1152.0,0.00023026,2]
[404896180,1770660641418,-5229.18147355,0.00023293,2]
[404896181,1770660641428,-196.14464306,0.00023548,2]
[404896182,1770660641437,-200.96,0.00023594,2]
[404896183,1770660641447,-1000.0,0.00023713,2]
[404896184,1770660641455,-4026.3124721,0.00023745,2]
[404896185,1770660641464,-1000.0,0.00023921,2]
[404896186,1770660641474,-5000.0,0.00024,2]
[404896187,1770660641483,-359.12467069,0.00024074,2]
[404896188,1770660641492,-176691.92163685,0.000241,2]
[404896189,1770660641502,-3187.53,0.00024174,2]
[404896190,1770660641513,-4608.89,0.00024174,2]
[404896191,1770660641522,-5278.04,0.00024174,2]
[404896192,1770660641532,-26706.82,0.00024174,2]
[404896193,1770660641542,-23588.34,0.00024174,2]
[404896194,1770660641552,-999.99,0.00024174,2]
[404896195,1770660641564,-9999.99,0.00024174,2]
[404896196,1770660641574,-2981.69,0.00024174,2]
[404896197,1770660641584,-9999.99,0.00024174,2]
[404896198,1770660641593,-499.99,0.00024174,2]
[404896199,1770660641603,-9999.99,0.00024174,2]
[404896200,1770660641614,-16472.4,0.00024174,2]
[404896201,1770660641762,-9999.99,0.00024174,2]
[404896202,1770660641794,-150.99,0.00024174,2]
[404896203,1770660641804,-59327.49,0.00024174,2]
[404896204,1770660641814,-9999.99,0.00024174,2]
[404896205,1770660641825,-1610.81,0.00024174,2]
[404896206,1770660641835,-5909.69,0.00024174,2]
[404896207,1770660641844,-1623.01,0.00024174,2]
[404896208,1770660641857,-9999.99,0.00024174,2]
[404896209,1770660641867,-299.99,0.00024174,7]
[404896210,1770660641876,-14615.05,0.00024174,2]
[404896211,1770660641885,-150.99,0.00024174,2]
[404896212,1770660641894,-1229.19,0.00024174,2]
[404896213,1770660641903,-1079.52,0.00024253,2]
[404896214,1770660641913,-334.12198603,0.00024304,2]
[404896215,1770660641922,-200.96,0.00024501,2]
[404896216,1770660641932,-20284.51,0.000246,2]
[404896217,1770660641941,-267.84,0.00024658,2]
[404896218,1770660641950,-1000.0,0.00024658,2]
[404896219,1770660641959,-217.18,0.00024659,2]
[404896220,1770660641968,-5339.59846196,0.00024952,2]
[404896221,1770660641977,-500.0,0.00024986,2]
[404896222,1770660641985,-17956.83747016,0.00025,2]
[404896223,1770660641994,-10000.0,0.00025,2]
[404896224,1770660642003,-681.38,0.00025,7]
[404896225,1770660642013,-1613.0,0.0002517,2]
[404896226,1770660642022,-9745.88,0.00025248,2]
[404896227,1770660642032,-500.0,0.00025266,2]
[404896228,1770660642041,-500.0,0.00025266,2]
[404896229,1770660642051,-6453.0,0.00025269,2]
[404896230,1770660642060,-217.18,0.00025812,2]
[404896231,1770660642069,-201.91272332,0.00025965,2]
[404896232,1770660642079,-5000.0,0.00026,2]
[404896233,1770660642088,-352.5341845,0.00026079,2]
[404896234,1770660642097,-160.0,0.00026329,2]
[404896235,1770660642106,-5670.84942762,0.00026612,2]
[404896236,1770660642115,-1087.9262344,0.00026648,2]
[404896237,1770660642124,-3485.0,0.00026965,2]
[404896238,1770660642133,-1336.0,0.00026965,2]
[404896239,1770660642143,-619.137,0.00026965,2]
[404896240,1770660642152,-1411.0,0.00026965,2]
[404896241,1770660642161,-150.0,0.00026965,2]
[404896242,1770660642170,-1271.0,0.00026965,2]
[404896243,1770660642179,-1205.0,0.00026965,2]
[404896244,1770660642189,-918.0,0.00026965,2]
[404896245,1770660642198,-3256.0,0.00026965,2]
[404896246,1770660642208,-6587.0,0.00026965,2]
[404896247,1770660642217,-158.67253178,0.00027397,2]
[404896248,1770660642226,-500.0,0.00027397,20]
[404896249,1770660642236,-300.0,0.00027397,2]
[404896250,1770660642245,-2258.0,0.00027516,2]
[404896251,1770660642254,-9035.0,0.00027774,2]
[404896252,1770660642264,-380.98940051,0.00027853,2]
[404896253,1770660642274,-5000.0,0.00028,2]
[404896254,1770660642283,-6112.51738183,0.00028271,2]
[404896255,1770660642292,-207.68080368,0.00028381,2]
[404896256,1770660642301,-681.38,0.000284,7]
[404896257,1770660642310,-6837.19693279,0.00028605,2]
[404896258,1770660642319,-5000.0,0.00028605,2]
[404896259,1770660642328,-5000.0,0.00028605,2]
[404896260,1770660642337,-5000.0,0.00028605,2]
[404896261,1770660642347,-280.55412175,0.00028767,2]
[404896262,1770660642358,-20284.51,0.000288,2]
[404896263,1770660642367,-2059.233,0.000289,3]
[404896264,1770660642376,-2059.233,0.000289,3]
[404896265,1770660642385,-2059.23,0.000289,3]
[404896266,1770660642394,-1487.269,0.000289,3]
[404896267,1770660642403,-1487.269,0.000289,3]
[404896268,1770660642413,-1487.27,0.000289,3]